Cogmind - Beta 10.2 @@@ ROGUE MODE // 2020.11.13 @ 21:03:21 // Halloween2020/ForbiddenLore Player: blelm Result: Self-destructed Performance ------------- Evolutions (3) 1500 Regions Visited (7) 1400 Robots Destroyed (106) 530 Value Destroyed (2735) 2735 Prototype IDs (16) 320 Alien Tech Used (0) 0 Bonus (604) 604 TOTAL SCORE: 7089 Bonus ------- High Alert Combat Kills 156 Follower Combat Kills 793 Friendly Fire -345 Cogmind --------- Core Integrity 700/700 Matter 145/300 Energy 290/290 System Corruption 25% Temperature Cool (0) Movement Treading (210) Ox2 Location -7/Waste Parts ------- > --- POWER (1) -------- Improved Deuterium Engine > --- PROPULSION (3) --- Armored Treads Armored Treads > --- UTILITY (7) ------ Large Storage Unit Large Storage Unit Large Storage Unit High-capacity Storage Unit Experimental Sensor Array Advanced Signal Interpreter Armor Integrity Analyzer > --- WEAPON (2) ------- Enhanced Autogun > --- INVENTORY (30) --- Improved Deuterium Engine Light Treads Armored Treads Armored Treads Coolant Injector Compact Matter Pod (0) Advanced Targeting Computer Hardened Heavy Armor Plating Hardened Heavy Armor Plating Medium Reflective Plating Insulated Plating Hacking Suite System Shield Shock Rifle Improved Lightning Gun Improved Assault Rifle Improved Assault Rifle Improved Assault Rifle EMP Blaster Guided Missile Launcher Precision Rocket Launcher Mining Laser Great Maul Peak State ------------ > --- POWER ------------ Improved Deuterium Engine > --- PROPULSION ------- Armored Treads Armored Treads Armored Treads > --- UTILITY ---------- Large Storage Unit Large Storage Unit High-capacity Storage Unit Experimental Sensor Array Advanced Signal Interpreter Medium Reflective Plating Hacking Suite > --- WEAPON ----------- Heavy Ion Cannon Improved Assault Rifle > --- INVENTORY -------- Improved Deuterium Engine Light Treads Light Treads Armored Treads Coolant Injector Compact Matter Pod Armor Integrity Analyzer Hardened Heavy Armor Plating Hardened Heavy Armor Plating Insulated Plating Hacking Suite Shock Rifle Improved Lightning Gun Improved Assault Rifle Improved Assault Rifle Enhanced Autogun EMP Blaster Guided Missile Launcher Precision Rocket Launcher Mining Laser Great Maul [Rating: 47] Favorites ----------- Power Improved Deuterium Engine Engine Improved Deuterium Engine Propulsion Light Treads Treads Light Treads Leg Aluminum Leg Wheel Compact Wheel Hover Unit Aerolev Unit Flight Unit Improved Flight Unit Utility Large Storage Unit Device Experimental Sensor Array Storage Large Storage Unit Processor Advanced Signal Interpreter Hackware Hacking Suite Protection Light Armor Plating Weapon Autogun Energy Gun Improved Lightning Gun Energy Cannon Heavy Ion Cannon Ballistic Gun Autogun Launcher Precision Rocket Launcher Special Weapon Mining Laser Impact Weapon Great Maul Build | -11 -10 -10 -9 -9 -8 -7 -7 ------- Run | Scr Mat Min Mat Sto Mat Fac Was Slots Evolved 6 | . . . 2 . 2 2 . Power . | . . . . . . . . Propulsion 1 | . . . . . 1 . . Utility 5 | . . . 2 . 1 2 . Weapon . | . . . . . . . . Parts Attached 113 | 3 4 . 21 34 24 21 6 Power 5 | . . . 2 2 1 . . Engine 5 | . . . 2 2 1 . . Core . | . . . . . . . . Reactor . | . . . . . . . . Propulsion 28 | 2 . . 8 4 11 3 . Treads 23 | 1 . . 7 4 8 3 . Leg . | . . . . . . . . Wheel 1 | 1 . . . . . . . Hover 3 | . . . . . 3 . . Flight 1 | . . . 1 . . . . Utility 32 | . 2 . 7 6 3 11 3 Device 5 | . . . . . . 4 1 Storage 6 | . 2 . 1 2 . 1 . Processor 2 | . . . . . . 1 1 Hackware 1 | . . . . . . 1 . Protection 18 | . . . 6 4 3 4 1 Artifact . | . . . . . . . . Weapon 48 | 1 2 . 4 22 9 7 3 Energy Gun 7 | . . . . 3 3 1 . Energy Cannon 4 | . . . . . . 2 2 Ballistic Gun 23 | 1 2 . 3 10 3 3 1 Ballistic Cannon . | . . . . . . . . Launcher 4 | . . . . 3 1 . . Special Weapon 3 | . . . . 1 2 . . Impact Weapon 7 | . . . 1 5 . 1 . Slashing Weapon . | . . . . . . . . Piercing Weapon . | . . . . . . . . Special Melee Weapon . | . . . . . . . . Unidentified Prototypes 9 | . . . 1 4 3 1 . Parts Lost 12 | . . . 4 7 . . 1 Power 1 | . . . . 1 . . . Propulsion 3 | . . . 1 2 . . . Utility 4 | . . . 1 3 . . . Weapon 4 | . . . 2 1 . . 1 Highest Loss Streak 4 | . . . 2 4 . . 1 Average Slot Usage (%) 99 | . 99 100 99 99 99 98 100 Engine 10 | . 14 14 11 11 9 7 7 Treads 20 | . 14 14 12 22 26 23 23 Wheel 3 | . 14 14 9 . . . . Device 1 | . . . . . . 7 6 Storage 26 | . 27 28 22 30 27 25 30 Processor 1 | . . . . . . 7 13 Protection 12 | . . . 21 13 17 7 1 Ballistic Gun 16 | . 28 28 21 16 13 8 8 Impact Weapon 2 | . . . . 4 1 2 . Naked Turns . | . . . . . . . . Heaviest Build 109 | 10 41 41 70 83 95 109 104 Greatest Support 60 | 16 16 16 43 43 60 60 60 Greatest Overweight (x) 23 | . 2 2 23 2 2 1 1 Average Overweight (x) 1 | . 1 2 2 1 1 1 1 Largest Inventory Capacity 30 | 6 16 16 18 24 24 30 30 Average Capacity 21 | 6 15 16 16 22 24 25 30 Most Carried 26 | 6 12 16 18 24 24 26 26 Average Carried 19 | 4 8 13 16 20 23 24 25 Final Capacity 30 | 6 16 16 18 24 24 30 30 Final Carried 26 | 4 12 16 18 24 24 26 26 Class Distribution -------------------- 45% | Hauler-Mutant 24% | Mutant 14% | Commander-Mutant 14% | Scavenger-Mutant Dominant Class ---------------- Mutant | -10/Materials Mutant | -10/Mines Mutant | -9/Materials Hauler-Mutant | -9/Storage Hauler-Mutant | -8/Materials Hauler-Mutant | -7/Factory Hauler-Mutant | -7/Waste Resources | -11 -10 -10 -9 -9 -8 -7 -7 ----------- Run | Scr Mat Min Mat Sto Mat Fac Was Matter Collected 2998 | 242 135 180 776 1005 461 49 150 Remotely . | . . . . . . . . Salvage Created 4427 | 71 249 255 1131 1605 785 97 234 Parts 246 | 3 25 13 79 77 37 5 7 Haulers Intercepted 14 | . 1 . 3 5 4 1 . Recyclers Shooed 3 | . . 1 . 1 1 . . Parts Field Recycled . | . . . . . . . . Retrieved Matter . | . . . . . . . . Parts Self-Destructed . | . . . . . . . . Prevented . | . . . . . . . . Kills | -11 -10 -10 -9 -9 -8 -7 -7 ------- Run | Scr Mat Min Mat Sto Mat Fac Was Combat Hostiles Destroyed 69 | . 10 6 17 24 10 1 1 Guns 60 | . 10 6 17 21 5 1 . Cannons 1 | . . . . . . . 1 AOE 5 | . . . . 3 2 . . Classes Destroyed 15 | 1 3 . 6 2 1 1 1 Worker 5 | . . . 3 1 1 . . Builder 4 | . . . 2 2 . . . Hauler 14 | . 1 . 3 5 4 1 . Recycler 4 | 1 . . . 2 1 . . Operator 2 | . . . 1 . 1 . . Watcher 6 | . . . 4 1 1 . . Swarmer 14 | . 8 . 4 . 2 . . Grunt 34 | . 2 6 7 16 3 . . Brawler 1 | . . . . 1 . . . Duelist 3 | . . . 1 2 . . . Protector 3 | . . . . 3 . . . Sentry 10 | . . . 5 2 3 . . Hunter 2 | . . . . . 2 . . Programmer 1 | . . . . . . 1 . Compactor 1 | . . . . . . . 1 Thug 2 | . . . 1 1 . . . Best Kill Streak 6 | 1 5 2 6 4 3 1 1 Combat Bots Only 5 | . 5 2 4 4 3 1 1 Max Kills in Single Turn 2 | 1 2 1 2 2 2 1 1 Gunslinging 1 | . 1 . . . . . . Exploded 2 | . . . . 2 2 . . Melee . | . . . . . . . . Uniques/NPCs Destroyed . | . . . . . . . . Combat | -11 -10 -10 -9 -9 -8 -7 -7 -------- Run | Scr Mat Min Mat Sto Mat Fac Was Damage Taken 3001 | . 163 247 665 1166 598 128 34 Core 420 | . 8 100 95 149 68 . . Absorbed by Shields . | . . . . . . . . Core Remaining (%) 70 | 100 . 56 . 39 87 . . Volleys Fired 327 | 3 19 16 86 93 58 25 27 Largest 2 | 2 2 2 2 2 2 2 1 Hottest 100 | 40 46 46 46 100 100 65 65 Shots Fired 558 | 6 38 32 170 164 91 31 26 Gun 508 | 6 38 32 170 158 86 18 . Cannon 39 | . . . . . . 13 26 Launcher 4 | . . . . 2 2 . . Special 7 | . . . . 4 3 . . Kinetic 488 | 6 38 32 170 158 66 18 . Thermal 46 | . . . . 4 3 13 26 Explosive 4 | . . . . 2 2 . . Electromagnetic 20 | . . . . . 20 . . Robot Hit Streak 17 | 5 10 12 10 17 16 8 14 Robot Miss Streak 5 | . 5 2 5 4 3 3 1 Penetration Max . | . . . . . . . . Secondary Targets 11 | . 2 1 5 3 . . . Max Gunslinging Chain 1 | . 1 1 1 1 . . . Shots Hit Robots 386 | 5 21 24 110 128 66 14 18 Core Hits 154 | 2 11 10 42 59 21 4 5 Critical Hits 8 | . . . 2 3 3 . . Critical Kills 2 | . . . . 1 1 . . Critical Parts Destroyed 6 | . . . 2 2 2 . . Melee Attacks 54 | . . . 4 31 7 12 . Impact 54 | . . . 4 31 7 12 . Slashing . | . . . . . . . . Piercing . | . . . . . . . . Sneak Attacks 11 | . . . . 9 1 1 . Combat Hostiles . | . . . . . . . . Follow-up Attacks . | . . . . . . . . Damage Inflicted 8235 | 66 311 411 1540 3116 1878 398 515 Guns 5689 | 66 311 387 1519 1871 1328 207 . Cannons 597 | . . . . . . 82 515 Explosions 651 | . . . . 322 329 . . Melee 1206 | . . . 21 908 174 103 . Ramming 92 | . . 24 . 15 47 6 . Kinetic 5132 | 66 311 387 1519 1871 771 207 . Thermal 654 | . . . . . 57 82 515 Explosive 594 | . . . . 322 272 . . Electromagnetic 557 | . . . . . 557 . . Impact 1206 | . . . 21 908 174 103 . Slashing . | . . . . . . . . Piercing . | . . . . . . . . Highest Corruption 25 | . . . 1 4 . 5 25 Average Corruption 3 | . . . 1 3 . 4 16 Corruption Purged . | . . . . . . . . Effects 88 | . . . 7 43 . 24 14 Message Errors 14 | . . . 2 3 . 6 3 Matter Fused 13 | . . . . 9 . 2 2 Heat Flow Errors 15 | . . . . 9 . 3 3 Energy Discharges 13 | . . . 1 6 . 5 1 Data Loss (minor) 7 | . . . 3 2 . 2 . Data Loss (major) 2 | . . . . . . . 2 Misfires 1 | . . . . . . 1 . Targeting Errors 21 | . . . . 14 . 5 2 Weapon Failures 2 | . . . 1 . . . 1 Overload Shots . | . . . . . . . . Overflow Damage 295 | . . . . 283 12 . . Projectiles . | . . . . . . . . Explosions 15 | . . . . 3 12 . . Melee 280 | . . . . 280 . . . Knockbacks 2 | . . . . 2 . . . Impact 2 | . . . . 2 . . . Kinetic . | . . . . . . . . Secondary . | . . . . . . . . Self-Inflicted Damage 27 | . . 12 . . 15 . . Shots 1 | . . . . . 1 . . Rammed 11 | . . 1 . 3 6 1 . Targets Rammed 11 | . . 1 . 3 6 1 . Kicked . | . . . . . . . . Crushed . | . . . . . . . . Highest Temperature 321 | . 24 43 141 321 226 192 218 Average Temperature 54 | . 7 15 30 92 43 71 44 Received Heat Transfer 1110 | . 30 132 237 543 168 . . Effects 2 | . . . . 2 . . . Interference 1 | . . . . 1 . . . Short Circuit 1 | . . . . 1 . . . Siege Activations . | . . . . . . . . Robots Corrupted 3 | . . . . . 3 . . Combat Hostiles 3 | . . . . . 3 . . Parts Fried 14 | . . . . 7 7 . . Impact Corruptions 12 | . . . . 11 1 . . Robots Melted . | . . . . . . . . Combat Hostiles . | . . . . . . . . Parts Melted . | . . . . . . . . Heat Transferred 864 | . . . . . 50 111 703 Parts Sabotaged . | . . . . . . . . Parts Stolen . | . . . . . . . . Parts Stripped . | . . . . . . . . Power Chain Reactions 1 | . . . . . 1 . . Missiles Intercepted . | . . . . . . . . Alert | -11 -10 -10 -9 -9 -8 -7 -7 ------- Run | Scr Mat Min Mat Sto Mat Fac Was Peak Influence 676 | 5 285 261 283 676 484 87 20 Initial 137 | . 3 111 23 5 137 79 16 Average 228 | 2 167 135 167 382 277 46 18 Maximum Alert Level 2 | . 1 1 1 2 2 . . Low Security (%) 46 | 100 43 76 58 5 35 100 100 Level 1 36 | . 56 23 41 48 47 . . Level 2 17 | . . . . 46 17 . . Level 3 . | . . . . . . . . Level 4 . | . . . . . . . . Level 5 . | . . . . . . . . High Security . | . . . . . . . . Max Security . | . . . . . . . . Squads Dispatched 21 | . 1 1 1 9 7 2 . Investigation 10 | . 1 1 . 3 4 1 . Extermination 1 | . . . . . . 1 . Reinforcement 5 | . . . 1 1 3 . . Assault 4 | . . . . 4 . . . Garrison 1 | . . . . 1 . . . Intercept . | . . . . . . . . Construction Impeded 2 | . . . . . 2 . . Haulers Reinforced . | . . . . . . . . Stealth | -11 -10 -10 -9 -9 -8 -7 -7 --------- Run | Scr Mat Min Mat Sto Mat Fac Was Distress Signals 11 | . . . 5 2 4 . . Communications Jammed . | . . . . . . . . Distress Signals . | . . . . . . . . Times Spotted 132 | . 9 6 37 47 28 3 2 Peak Tracking Total 6 | . 3 2 6 6 4 2 2 Tactical Retreats 6 | . 1 . 3 1 1 . . Traps | -11 -10 -10 -9 -9 -8 -7 -7 ------- Run | Scr Mat Min Mat Sto Mat Fac Was Traps Triggered 13 | . 1 . 4 4 2 2 . Indirectly . | . . . . . . . . Trap Hack Attempts . | . . . . . . . . Triggered . | . . . . . . . . Disarmed . | . . . . . . . . Reprogrammed . | . . . . . . . . Reused . | . . . . . . . . Traps Extracted . | . . . . . . . . Installed . | . . . . . . . . Triggered . | . . . . . . . . Machines | -11 -10 -10 -9 -9 -8 -7 -7 ---------- Run | Scr Mat Min Mat Sto Mat Fac Was Machines Disabled 8 | . . . 1 5 2 . . Max in Single Turn 1 | . . . 1 1 1 . . Garrison Access 1 | . . . . 1 . . . Machines Sabotaged . | . . . . . . . . Garrisons Compromised . | . . . . . . . . Overloaded Fab Kills . | . . . . . . . . Fab Network Shutdowns . | . . . . . . . . Hacking | -11 -10 -10 -9 -9 -8 -7 -7 --------- Run | Scr Mat Min Mat Sto Mat Fac Was Machines Accessed 37 | . 2 1 8 14 7 5 . Terminals 31 | . 2 . 7 12 6 4 . Fabricators 1 | . . . . . . 1 . Repair Stations 1 | . . . . 1 . . . Recycling Units . | . . . . . . . . Scanalyzers 2 | . . . 1 . 1 . . Garrison Access 1 | . . . . 1 . . . Total Hacks 99 | . 4 1 22 39 22 11 . Successful 43 | . 2 1 12 16 6 6 . Failed 56 | . 2 . 10 23 16 5 . Catastrophic 11 | . . . 2 3 4 2 . Database Lockouts . | . . . . . . . . Manual 50 | . 2 . 19 14 11 4 . Terminals 86 | . 4 . 20 33 20 9 . Fabricators 2 | . . . . . . 2 . Repair Stations 4 | . . . . 4 . . . Recycling Units . | . . . . . . . . Scanalyzers 4 | . . . 2 . 2 . . Garrison Access 2 | . . . . 2 . . . Terminal Hacks 31 | . 2 1 10 11 2 5 . Part Schematic 3 | . . . 2 . . 1 . Robot Analysis 3 | . 1 . 2 . . . . Prototype ID Bank 3 | . 1 . 1 1 . . . Open Door 5 | . . 1 . 4 . . . Terminal Index 1 | . . . . . . 1 . Repair Station Index 1 | . . . 1 . . . . Unreport Threat 7 | . . . 2 3 2 . . Locate Traps 1 | . . . . . . 1 . Transport Status 1 | . . . 1 . . . . Hauler Manifests 3 | . . . 1 1 . 1 . Zone Layout 3 | . . . . 2 . 1 . Fabricator Hacks . | . . . . . . . . Repair Station Hacks 2 | . . . . 2 . . . Scan Component 1 | . . . . 1 . . . Repair 1 | . . . . 1 . . . Recycling Unit Hacks . | . . . . . . . . Scanalyzer 3 | . . . 1 . 2 . . Insert Component 2 | . . . 1 . 1 . . Analyze 1 | . . . . . 1 . . Garrison Access Hacks . | . . . . . . . . Unauthorized Hacks 7 | . . . 1 3 2 1 . Terminals 7 | . . . 1 3 2 1 . Botnet 5 | . . . 1 2 1 1 . Operators 2 | . . . . 1 1 . . Fabricators . | . . . . . . . . Repair Stations . | . . . . . . . . Recycling Units . | . . . . . . . . Scanalyzers . | . . . . . . . . Garrison Access . | . . . . . . . . Data Cores Recovered . | . . . . . . . . Used . | . . . . . . . . Hacking Detections 32 | . 2 . 7 11 7 5 . Full Trace Events 7 | . . . . 5 2 . . Feedback Events . | . . . . . . . . Feedback Blocked . | . . . . . . . . Robot Schematics Acquired . | . . . . . . . . Robots Built . | . . . . . . . . Matter . | . . . . . . . . Time . | . . . . . . . . Total Robot Build Rating . | . . . . . . . . Part Schematics Acquired 4 | . . . 2 . 1 1 . Parts Built . | . . . . . . . . Matter . | . . . . . . . . Time . | . . . . . . . . Total Part Build Rating . | . . . . . . . . Parts Repaired 1 | . . . . 1 . . . Time 100 | . . . . 100 . . . Parts Recycled . | . . . . . . . . Recycled Matter . | . . . . . . . . Retrieved Matter . | . . . . . . . . Retrieved Components . | . . . . . . . . Parts Scanalyzed 1 | . . . 1 . . . . Part Schematics Acquired 1 | . . . . . 1 . . Parts Damaged . | . . . . . . . . Bothacking | -11 -10 -10 -9 -9 -8 -7 -7 ------------ Run | Scr Mat Min Mat Sto Mat Fac Was Used RIF Installer . | . . . . . . . . Robots Hacked . | . . . . . . . . Non-combat . | . . . . . . . . Combat . | . . . . . . . . Robot Hacks Applied . | . . . . . . . . Relay Couplers Released . | . . . . . . . . Robots Rewired . | . . . . . . . . Allies Hacked . | . . . . . . . . Hacks Repelled . | . . . . . . . . Allies | -11 -10 -10 -9 -9 -8 -7 -7 -------- Run | Scr Mat Min Mat Sto Mat Fac Was Total Allies 12 | . . . . 12 . . . Largest Group 10 | . . . . 10 9 . . Highest-Rated Group 88 | . . . . 88 80 . . Highest-Rated Ally 31 | . . . . 31 16 . . Total Orders . | . . . . . . . . Ally Attacks 200 | . . . . 77 123 . . Total Damage 2038 | . . . . 1050 988 . . Kills 35 | . . . . 20 15 . . Allies Corrupted 1 | . . . . 1 . . . Allies Melted . | . . . . . . . . Intel | -11 -10 -10 -9 -9 -8 -7 -7 ------- Run | Scr Mat Min Mat Sto Mat Fac Was Robot Analysis Total 3 | . 1 . 2 . . . . Derelict Logs Recovered 1 | . . 1 . . . . . Drone Launches . | . . . . . . . . Drone Recoveries . | . . . . . . . . Exploration | -11 -10 -10 -9 -9 -8 -7 -7 ------------- Run | Scr Mat Min Mat Sto Mat Fac Was Turns Passed 7316 | 19 317 605 1379 2252 1403 1111 230 Spaces Moved 3296 | 7 203 445 727 684 645 525 60 Core 1 | . . . 1 . . . . Treads 2076 | . . . 162 684 645 525 60 Legs . | . . . . . . . . Wheels 1219 | 7 203 445 564 . . . . Hover . | . . . . . . . . Flight . | . . . . . . . . Fastest Speed 100 | 100 100 120 120 180 180 180 190 Average Speed 162 | 100 117 120 143 184 180 187 190 Slowest Speed 1200 | 100 120 120 1200 200 200 190 190 Overloaded Moves . | . . . . . . . . Propulsion Burnouts . | . . . . . . . . Robots Hopped . | . . . . . . . . Cave-ins Triggered . | . . . . . . . . Exploration Rate (%) 48 | 2 43 85 69 94 55 19 23 Regions Visited 7 Branch Regions 2 Pre-discovered Areas . | . . . . . . . . Known Exits Taken 1 | . . . 1 . . . . Unknown Exits Taken 5 | 1 1 1 . 1 1 . . Scrap Searched 3 | . . 3 . . . . . Spaces Dug 27 | . . . 3 10 5 8 1 Terrain Destroyed 96 | . . . 3 53 26 10 4 Melee 21 | . . . 3 8 3 7 . Projectile 14 | . . . . 4 3 3 4 AOE 61 | . . . . 41 20 . . Terrain Rammed . | . . . . . . . . Walls Destroyed . | . . . . . . . . Machines Disabled . | . . . . . . . . Actions | -11 -10 -10 -9 -9 -8 -7 -7 --------- Run | Scr Mat Min Mat Sto Mat Fac Was Total 4669 | 14 250 490 917 1457 788 607 146 Wait 721 | . 14 23 55 560 18 . 51 Move 3290 | 6 202 444 726 683 644 525 60 Hop . | . . . . . . . . Pick Up 66 | . 9 5 13 22 8 8 1 Fast Attach 28 | . 1 . 8 6 11 2 . Attach 27 | 2 1 . 7 9 1 7 . Detach 11 | . . . 1 5 . 5 . Swap 58 | 1 2 . 6 19 12 12 6 Drop 70 | 2 2 1 11 20 23 10 1 Fire 327 | 3 19 16 86 93 58 25 27 Melee 54 | . . . 4 31 7 12 . Ram 1 | . . 1 . . . . . Kick . | . . . . . . . . Crush 10 | . . . . 3 6 1 . Escape Stasis 4 | . . . . 4 . . . Rewire 2 | . . . . 2 . . . Trap . | . . . . . . . . Miscellaneous . | . . . . . . . . Route ------- -11/Scrapyard -10/Materials (discovered 2 exits: *Min x2) -10/Mines (discovered 2 exits: *Mat / [*Exi]) -9/Materials (discovered 3 exits: *Mat / [*Min] / *Sto) -9/Storage -8/Materials -7/Factory -7/Waste History --------- Turn | Location | Event 14 | -11/Scrapyard | Discovered new exit (range 3) 20 | -11/Scrapyard | Entered Materials 200 | -10/Materials | Discovered new exit (range 16) 264 | -10/Materials | Discovered new exit (range 8) 312 | -10/Materials | Build established: Mutant 337 | -10/Materials | Entered Mines 359 | -10/Mines | Deemed a non-threat by the Exiles lab entrance 360 | -10/Mines | Discovered new exit (range 5) 532 | -10/Mines | Discovered new exit (range 10) 686 | -10/Mines | Met a Derelict shopkeep closing up shop 761 | -10/Mines | A weapon hastily lodged in a ceiling crevice suddenly fell to the ground 888 | -10/Mines | Found a damaged Exp. Sensor Array with a note attached 891 | -10/Mines | Found Prototype Device 942 | -10/Mines | Entered Materials 942 | -9/Materials | Evolved 2 slots: Utility x2 943 | -9/Materials | Identified exit to Storage 1073 | -9/Materials | Identified Exp. Sensor Array 1440 | -9/Materials | Discovered new exit (range 16) 1700 | -9/Materials | Discovered new exit (range 10) 2158 | -9/Materials | Build established: Scavenger-Mutant 2321 | -9/Materials | Entered Storage 2368 | -9/Storage | Met a pair of Derelict thieves 2567 | -9/Storage | Repaired Broken Exp. Sensor Array 2746 | -9/Storage | Garrison activated, responded to threat 3092 | -9/Storage | Lost 4 parts (1p1n1u1w) 3121 | -9/Storage | First assault squad dispatched 3177 | -9/Storage | Build established: Hauler-Mutant 3321 | -9/Storage | Discovered new exit (range 16) 3966 | -9/Storage | Found Prototype Launcher 3966 | -9/Storage | Identified Gui. Missile Launcher 4058 | -9/Storage | Core integrity fell below 50% 4078 | -9/Storage | Assisted by bots powering up and referring to "LRC-V3" 4412 | -9/Storage | Build established: Commander-Mutant 4573 | -9/Storage | Entered Materials 4573 | -8/Materials | Accompanied by 9 allies 4573 | -8/Materials | Evolved 2 slots: Propulsion x1, Utility x1 4777 | -8/Materials | Discovered new exit (range 7) 5479 | -8/Materials | Build established: Hauler-Mutant 5976 | -8/Materials | Entered Factory 5976 | -7/Factory | Evolved 2 slots: Utility x2 6822 | -7/Factory | Discovered new exit (range 5) 6829 | -7/Factory | Identified exit to Factory 7087 | -7/Factory | Sucked down chute 7087 | -7/Factory | Entered Waste 7095 | -7/Waste | Spotted C-40 Crusher 7102 | -7/Waste | EMP discharged 7102 | -7/Waste | System corruption reached 10% 7202 | -7/Waste | EMP discharged 7229 | -7/Waste | Spotted C-40 Crusher 7251 | -7/Waste | Destroyed C-40 Crusher 7302 | -7/Waste | EMP discharged 7317 | -7/Waste | Crushed by Compactor (1 part destroyed, 1 dropped) 7317 | -7/Waste | Self-destructed Last Messages --------------- 07148_ |V2%Y 1J6ELWFGBQWBW93% 07172_ System corrupted: Matter fused (-8). 07187_ E/|RANEEF=QTEDS